bitfinex-derivatives/quotes_BNBF0:USTF0_20251010
["timestamp","ask_amount","ask_price","bid_price","bid_amount"]
[1760060885380,0.3128156,1250.9,1250.8,0.58016025]
[1760060893687,0.3128156,1250.9,1250.3,0.59733456]
[1760060893886,0.3128156,1250.9,1250.4,0.5790648]
[1760060894188,0.3128156,1250.9,1248.6,1.9839181]
[1760060894189,0.3128156,1250.9,1250.5,0.5790648]
[1760060894386,0.3128156,1250.9,1250.1,0.59733456]
[1760060894588,0.3128156,1250.9,1250.2,0.57874546]
[1760060894786,0.3128156,1250.9,1250.3,0.57874546]
[1760060894991,0.3128156,1250.9,1250.4,0.57874546]
[1760060895194,0.3128156,1250.9,1250.5,0.57874546]
[1760060895491,0.3128156,1250.9,1250.6,0.57874546]
[1760060895691,0.3128156,1250.9,1250.7,0.57874546]
[1760060895891,0.3128156,1250.9,1249.7,0.79631474]
[1760060896091,0.19545407,1249.9,1249.8,0.57844728]
[1760060896294,0.19545407,1249.9,1249.8,1.17578184]
[1760060896594,0.3128156,1250.9,1249.8,1.17578184]
[1760060896790,0.3128156,1250.9,1250.0,0.59733456]
[1760060897095,0.3128156,1250.9,1250.1,0.57844728]
[1760060897397,0.3128156,1250.9,1250.2,0.57844728]
[1760060897691,0.3128156,1250.9,1250.0,0.59733456]
[1760060897692,0.3128156,1250.9,1250.3,0.57844728]
[1760060897890,0.3128156,1250.9,1250.4,0.57844728]
[1760060898191,0.3128156,1250.9,1250.5,0.57844728]
[1760060898490,0.3128156,1250.9,1250.6,0.57844728]
[1760060898694,0.3128156,1250.9,1250.2,0.59733456]
[1760060898891,0.3128156,1250.9,1250.3,0.57750743]
[1760060899088,0.3128156,1250.9,1250.4,0.57750743]
[1760060899291,0.3128156,1250.9,1250.5,0.57750743]
[1760060899491,0.3128156,1250.9,1250.6,0.57750743]
[1760060899695,0.3128156,1250.9,1250.3,0.59733456]
[1760060899895,0.3128156,1250.9,1250.4,0.57730258]
[1760060900092,0.3128156,1250.9,1250.5,0.57730258]
[1760060900292,0.3128156,1250.9,1250.6,0.57730258]
[1760060900594,0.3128156,1250.9,1250.7,0.57730258]
[1760060900796,0.3128156,1250.9,1250.8,0.57730258]
[1760060903400,0.3128156,1250.9,1250.2,0.59733456]
[1760060903598,0.3128156,1250.9,1250.3,0.57675397]
[1760060903798,0.3128156,1250.9,1250.4,0.57675397]
[1760060904100,0.3128156,1250.9,1250.5,0.57675397]
[1760060904298,0.3128156,1250.9,1250.6,0.57675397]
[1760060904503,0.3128156,1250.9,1250.7,0.57675397]
[1760060904802,0.3128156,1250.9,1250.4,0.59733456]
[1760060905002,0.3128156,1250.9,1250.5,0.57663243]
[1760060905202,0.3128156,1250.9,1250.6,0.57663243]
[1760060905404,0.3128156,1250.9,1250.7,0.57663243]
[1760060905702,0.3128156,1250.9,1250.1,0.59733456]
[1760060905900,0.3128156,1250.9,1250.2,0.57657861]
[1760060906103,0.3128156,1250.9,1250.3,0.57657861]
[1760060906304,0.3128156,1250.9,1250.4,0.57657861]
[1760060906600,0.3128156,1250.9,1250.5,0.57657861]
[1760060906800,0.3128156,1250.9,1250.6,0.57657861]
[1760060907001,0.3128156,1250.9,1250.7,0.57657861]
[1760060907204,0.3128156,1250.9,1249.9,0.59733456]
[1760060907402,0.3128156,1250.9,1250.0,0.57632299]
[1760060907600,0.3128156,1250.9,1250.1,0.57632299]
[1760060907804,0.3128156,1250.9,1250.2,0.57632299]
[1760060908000,0.3128156,1250.9,1250.3,0.57632299]
[1760060908203,0.3128156,1250.9,1250.4,0.57632299]
[1760060908401,0.3128156,1250.9,1250.5,0.57632299]
[1760060908702,0.3128156,1250.9,1250.6,0.57632299]
[1760060908901,0.3128156,1250.9,1250.7,0.57632299]
[1760060909203,0.3128156,1250.9,1250.3,0.59733456]
[1760060909400,0.11630672,1250.9,1250.4,0.57603305]
[1760060909598,0.11630672,1250.9,1250.5,0.57603305]
[1760060909803,0.11630672,1250.9,1250.6,0.57603305]
[1760060910003,0.11630672,1250.9,1250.7,0.57603305]
[1760060910304,0.11630672,1250.9,1250.3,0.59733456]
[1760060910501,0.11630672,1250.9,1250.4,1.17329573]
[1760060910705,0.11630672,1250.9,1250.5,0.57596117]
[1760060910907,0.11630672,1250.9,1250.6,0.57596117]
[1760060911201,0.11630672,1250.9,1250.7,0.57596117]
[1760060911502,0.11630672,1250.9,1250.8,0.57596117]
[1760060919714,0.11630672,1250.9,1250.2,0.59733456]
[1760060919912,0.11630672,1250.9,1250.3,0.5763069]
[1760060920111,0.11630672,1250.9,1250.4,0.5763069]
[1760060920315,0.11630672,1250.9,1250.5,0.5763069]
[1760060920612,0.11630672,1250.9,1250.6,0.5763069]
[1760060920915,0.11630672,1250.9,1250.7,0.5763069]
[1760060921215,0.11630672,1250.9,1250.2,0.59733456]
[1760060921512,0.11630672,1250.9,1250.3,0.57645278]
[1760060921716,0.11630672,1250.9,1250.4,0.57645278]
[1760060921918,0.11630672,1250.9,1250.5,0.57645278]
[1760060922213,0.11630672,1250.9,1250.6,0.57645278]
[1760060922415,0.11630672,1250.9,1250.7,0.57645278]
[1760060922612,0.11630672,1250.9,1250.1,0.59733456]
[1760060922816,0.11630672,1250.9,1250.2,1.17387409]
[1760060923013,0.11630672,1250.9,1250.3,0.57653953]
[1760060923216,0.11630672,1250.9,1250.2,0.59733456]
[1760060923217,0.11630672,1250.9,1250.4,0.57653953]
[1760060923415,0.11630672,1250.9,1250.5,0.57653953]
[1760060923619,0.11630672,1250.9,1250.6,0.57653953]
[1760060923916,0.11630672,1250.9,1250.7,0.57661262]
[1760060924119,0.11630672,1250.9,1250.2,0.59733456]
[1760060924316,0.11630672,1250.9,1250.3,0.57676336]
[1760060924515,0.11630672,1250.9,1250.4,0.57676336]
[1760060924818,0.11630672,1250.9,1250.5,0.57676336]
[1760060925015,0.11630672,1250.9,1250.6,0.57676336]
[1760060925220,0.11630672,1250.9,1250.7,0.57676336]
[1760060925521,0.11630672,1250.9,1250.2,0.59733456]
[1760060925718,0.11630672,1250.9,1250.3,0.57692243]
[1760060925918,0.11630672,1250.9,1250.4,0.57692243]
[1760060926119,0.11630672,1250.9,1250.5,0.57692243]
[1760060926420,0.11630672,1250.9,1250.6,0.57692243]
[1760060926618,0.11630672,1250.9,1250.7,0.57692243]
[1760060926816,0.11630672,1250.9,1250.2,0.59733456]
[1760060927021,0.11630672,1250.9,1250.3,0.57682819]
[1760060927321,0.11630672,1250.9,1250.4,0.57682819]
[1760060927523,0.11630672,1250.9,1250.5,0.57682819]
[1760060927718,0.11630672,1250.9,1250.6,0.57682819]
[1760060927923,0.11630672,1250.9,1250.2,0.59733456]
[1760060928220,0.11630672,1250.9,1250.3,0.57701549]
[1760060928519,0.11630672,1250.9,1250.4,0.57701549]
[1760060928823,0.11630672,1250.9,1250.5,0.57701549]
[1760060929023,0.11630672,1250.9,1250.6,0.57701549]
[1760060929220,0.11630672,1250.9,1250.2,0.59733456]
[1760060929419,0.11630672,1250.9,1250.3,0.57723204]
[1760060929621,0.11630672,1250.9,1250.4,0.57723204]
[1760060929820,0.11630672,1250.9,1250.5,0.57723204]
[1760060930022,0.11630672,1250.9,1250.6,0.57723204]
[1760060930223,0.11630672,1250.9,1250.2,0.59733456]
[1760060930424,0.11630672,1250.9,1250.3,0.5773523]
[1760060930627,0.11630672,1250.9,1250.4,0.5773523]
[1760060930825,0.11630672,1250.9,1250.5,0.5773523]
[1760060931025,0.11630672,1250.9,1250.6,0.5773523]
[1760060931322,0.11630672,1250.9,1250.2,0.59733456]
[1760060931526,0.11630672,1250.9,1250.3,0.57750713]
[1760060931724,0.11630672,1250.9,1250.4,0.57750713]
[1760060931922,0.11630672,1250.9,1250.5,0.57750713]
[1760060932222,0.11630672,1250.9,1250.6,0.57750713]
[1760060932424,0.11630672,1250.9,1250.1,0.59733456]
[1760060932624,0.11630672,1250.9,1250.2,0.577669]
[1760060932825,0.11630672,1250.9,1250.3,0.577669]
[1760060933025,0.11630672,1250.9,1250.4,0.577669]
[1760060933226,0.11630672,1250.9,1249.5,0.59733456]
[1760060933427,0.11630672,1250.9,1249.6,0.57784077]
[1760060933625,0.11630672,1250.9,1249.7,0.57784077]
[1760060933828,0.11630672,1250.9,1249.8,0.57784077]
[1760060934028,0.11630672,1250.9,1249.9,0.57784077]
[1760060934228,0.11630672,1250.9,1250.0,0.57784077]
[1760060934427,0.11630672,1250.9,1250.1,0.57784077]
[1760060934727,0.11630672,1250.9,1250.2,0.57786565]
[1760060934926,0.11630672,1250.9,1250.3,0.57779742]
[1760060935225,0.11630672,1250.9,1250.4,0.57779742]
[1760060935429,0.11630672,1250.9,1250.5,0.57779742]
[1760060935629,0.11630672,1250.9,1250.0,0.59733456]
[1760060935827,0.11630672,1250.9,1250.1,0.57790144]
[1760060936027,0.11630672,1250.9,1250.2,0.57790144]
[1760060936326,0.11630672,1250.9,1250.3,0.57790144]
[1760060936529,0.11630672,1250.9,1250.4,0.57790144]
[1760060936730,0.11630672,1250.9,1250.5,0.57790144]
[1760060937030,0.11630672,1250.9,1250.0,0.59733456]
[1760060937230,0.11630672,1250.9,1250.1,0.57805147]
[1760060937526,0.11630672,1250.9,1250.2,0.57805147]
[1760060937726,0.11630672,1250.9,1250.3,0.57805147]
[1760060937930,0.11630672,1250.9,1250.4,0.57805147]
[1760060938128,0.11630672,1250.9,1250.0,0.59733456]
[1760060938327,0.11630672,1250.9,1250.1,0.5784454]
[1760060938630,0.11630672,1250.9,1250.2,0.5784454]
[1760060938828,0.11630672,1250.9,1250.0,0.59733456]
[1760060938829,0.11630672,1250.9,1250.3,0.5784454]
[1760060939031,0.11630672,1250.9,1250.4,0.5784454]
[1760060939228,0.11630672,1250.9,1250.0,0.59733456]
[1760060939434,0.11630672,1250.9,1250.1,0.57867258]
[1760060939629,0.11630672,1250.9,1250.2,0.57867258]
[1760060939828,0.11630672,1250.9,1250.3,0.57867258]
[1760060940032,0.11630672,1250.9,1250.4,0.57867258]
[1760060940234,0.11630672,1250.9,1250.0,0.59733456]
[1760060940433,0.11630672,1250.9,1250.1,0.57867728]
[1760060940630,0.11630672,1250.9,1250.2,0.57867728]
[1760060940932,0.11630672,1250.9,1250.3,0.57867728]
[1760060941230,0.11630672,1250.9,1250.4,0.57867728]
[1760060941432,0.11630672,1250.9,1250.0,0.59733456]
[1760060941631,0.11630672,1250.9,1250.1,0.57881329]
[1760060941827,0.11630672,1250.9,1250.2,0.57881329]
[1760060942033,0.11630672,1250.9,1250.3,0.57881329]
[1760060942231,0.11630672,1250.9,1250.4,0.57881329]
[1760060942435,0.11630672,1250.9,1250.5,0.57881329]
[1760060942634,0.11630672,1250.9,1250.0,0.59733456]
[1760060942835,0.11630672,1250.9,1250.1,0.57896945]
[1760060943032,0.11630672,1250.9,1250.2,0.57896945]
[1760060943233,0.11630672,1250.9,1250.3,0.57896945]
[1760060943428,0.11630672,1250.9,1250.4,0.57896945]
[1760060943634,0.11630672,1250.9,1250.5,0.57896945]
[1760060943832,0.11630672,1250.9,1250.1,0.59733456]
[1760060944032,0.11630672,1250.9,1250.2,0.57911297]
[1760060944235,0.11630672,1250.9,1250.3,0.57911297]
[1760060944436,0.11630672,1250.9,1250.4,0.57911297]
[1760060944637,0.11630672,1250.9,1250.5,0.57911297]
[1760060944837,0.11630672,1250.9,1250.6,0.57911297]
[1760060945035,0.11630672,1250.9,1250.2,0.59733456]
[1760060945234,0.11630672,1250.9,1250.3,0.57920184]
[1760060945534,0.11630672,1250.9,1250.4,0.57920184]
[1760060945734,0.11630672,1250.9,1250.5,0.57920184]
[1760060945939,0.11630672,1250.9,1250.6,0.57920184]
[1760060946240,0.11630672,1250.9,1250.7,0.57945605]
[1760060946436,0.11630672,1250.9,1250.2,0.59733456]
[1760060946632,0.11630672,1250.9,1250.3,0.57947984]
[1760060946838,0.11630672,1250.9,1250.4,0.57947984]
[1760060947037,0.11630672,1250.9,1250.5,0.57947984]
[1760060947236,0.11630672,1250.9,1250.6,0.57947984]
[1760060947435,0.11630672,1250.9,1250.7,0.57947984]
[1760060947639,0.11630672,1250.9,1250.8,0.5796106]
[1760060957340,0.11630672,1250.9,1250.8,1.17537144]
[1760060957642,0.11630672,1250.9,1250.8,0.5796106]
[1760060958450,0.31177765,1250.9,1250.8,1.3755836]
[1760060959147,0.50725003,1250.9,1250.8,1.3755836]
[1760060959345,0.31177765,1250.9,1250.8,1.3755836]
[1760060959750,0.50714623,1250.9,1250.8,1.3755836]
[1760060959953,0.31177765,1250.9,1250.8,1.3755836]
[1760060960957,0.50705003,1250.9,1250.8,1.3755836]
[1760060961255,0.5070369,1250.9,1250.8,1.3755836]
[1760060961453,0.31177765,1250.9,1250.8,1.3755836]
[1760060961752,0.50696556,1250.9,1250.8,1.3755836]
[1760060962456,0.70212548,1250.9,1250.8,0.5796106]
[1760060962654,0.50696556,1250.9,1250.8,0.5796106]
[1760060963653,0.50696556,1250.9,1250.8,1.17392847]
[1760060963958,0.50696556,1250.9,1250.8,0.5796106]
[1760060966461,0.50696556,1250.9,1250.8,1.17392847]
[1760060967666,0.50696556,1250.9,1250.8,0.5796106]
[1760060967867,0.50696556,1250.9,1250.8,0.57592534]
[1760060969367,0.50696556,1250.9,1250.8,1.17004893]
[1760060972165,0.50696556,1250.9,1250.8,0.57592534]
[1760060976575,0.50696556,1250.9,1250.8,1.16974185]
[1760060980575,0.50696556,1250.9,1250.8,0.57592534]
[1760060981476,0.50696556,1250.9,1250.8,1.16974185]
[1760060983576,0.50696556,1250.9,1250.8,0.57592534]
[1760060986178,0.50696556,1250.9,1250.8,1.16974185]
[1760060995490,0.50696556,1250.9,1250.8,0.57592534]
[1760061003294,0.50696556,1250.9,1250.3,0.59381651]
[1760061003494,0.50696556,1250.9,1250.4,0.57729534]
[1760061003694,0.50696556,1250.9,1250.5,0.57729534]
[1760061003996,0.50696556,1250.9,1250.0,0.59381651]
[1760061004194,0.50696556,1250.9,1250.1,0.57730892]
[1760061004393,0.50696556,1250.9,1250.2,0.57730892]
[1760061004597,0.50696556,1250.9,1250.3,0.57730892]
[1760061004893,0.50696556,1250.9,1250.4,0.57730892]
[1760061005194,0.50696556,1250.9,1250.5,0.57730892]
[1760061005394,0.50696556,1250.9,1250.0,0.59381651]
[1760061005598,0.50696556,1250.9,1250.1,0.57725941]
[1760061005798,0.50696556,1250.9,1250.2,0.57725941]
[1760061005996,0.50696556,1250.9,1250.3,0.57725941]
[1760061006194,0.50696556,1250.9,1250.4,0.57725941]
[1760061006394,0.50696556,1250.9,1250.5,0.57725941]
[1760061006696,0.50696556,1250.9,1250.0,0.59381651]
[1760061006899,0.50696556,1250.9,1250.1,0.57720876]
[1760061007096,0.50696556,1250.9,1250.2,0.57720876]
[1760061007299,0.50696556,1250.9,1250.3,0.57720876]
[1760061007599,0.50696556,1250.9,1250.4,0.57720876]
[1760061007800,0.50696556,1250.9,1250.5,0.57720876]
[1760061008102,0.50696556,1250.9,1250.0,0.59381651]
[1760061008295,0.50696556,1250.9,1250.1,0.57715969]
[1760061008600,0.50696556,1250.9,1250.2,0.57715969]
[1760061008801,0.50696556,1250.9,1250.3,0.57715969]
[1760061008996,0.50696556,1250.9,1250.4,0.57715969]
[1760061009200,0.50696556,1250.9,1249.7,0.59381651]
[1760061009396,0.50696556,1250.9,1249.8,0.57680682]
[1760061009698,0.50696556,1250.9,1249.9,0.57680682]
[1760061009901,0.50696556,1250.9,1250.0,0.57680682]
[1760061010101,0.50696556,1250.9,1250.1,0.57680682]
[1760061010302,0.50696556,1250.9,1249.5,0.19898018]
[1760061010303,0.50696556,1250.9,1250.2,0.57680682]
[1760061010502,0.50696556,1250.9,1250.3,0.57680682]
[1760061010699,0.50696556,1250.9,1250.4,0.57680682]
[1760061010899,0.50696556,1250.9,1249.5,0.59381651]
[1760061011099,0.50696556,1250.9,1249.6,0.57657185]
[1760061011298,0.50696556,1250.9,1249.7,0.57657185]
[1760061011498,0.50696556,1250.9,1249.8,0.57657185]
[1760061011798,0.50696556,1250.9,1249.9,0.57657185]
[1760061011998,0.50696556,1250.9,1250.0,0.57657185]
[1760061012202,0.50696556,1250.9,1250.1,0.57657185]
[1760061012401,0.50696556,1250.9,1250.2,0.57657185]
[1760061012603,0.50696556,1250.9,1249.6,0.59381651]
[1760061012904,0.50696556,1250.9,1249.7,0.57601981]
[1760061013103,0.50696556,1250.9,1249.8,0.57601981]
[1760061013399,0.50696556,1250.9,1249.9,0.57601981]
[1760061013598,0.50696556,1250.9,1250.0,0.57601981]
[1760061013801,0.50696556,1250.9,1250.1,0.57601981]
[1760061013999,0.50696556,1250.9,1250.2,0.57601981]
[1760061014303,0.50696556,1250.9,1249.7,0.59381651]
[1760061014505,0.50696556,1250.9,1249.8,0.5754541]
[1760061014804,0.50696556,1250.9,1249.9,0.5754541]
[1760061015001,0.50696556,1250.9,1249.7,0.59381651]
[1760061015002,0.50696556,1250.9,1250.0,0.5754541]
[1760061015201,0.50696556,1250.9,1250.1,0.5754541]
[1760061015501,0.50696556,1250.9,1250.2,0.5754541]
[1760061015701,0.50696556,1250.9,1249.7,0.59381651]
[1760061015901,0.50696556,1250.9,1249.8,0.57522198]
[1760061016105,0.50696556,1250.9,1249.9,0.57522198]
[1760061016306,0.50696556,1250.9,1250.0,0.57522198]
[1760061016506,0.50696556,1250.9,1250.1,0.57522198]
[1760061016704,0.50696556,1250.9,1250.2,0.57522198]
[1760061016908,0.50696556,1250.9,1249.7,0.59381651]
[1760061017205,0.50696556,1250.9,1249.8,0.57502668]
[1760061017505,0.50696556,1250.9,1249.9,0.57502668]
[1760061017708,0.50696556,1250.9,1249.5,0.79242382]
[1760061017709,0.50696556,1250.9,1250.0,0.57502668]
[1760061018006,0.50696556,1250.9,1250.1,0.57502668]
[1760061018204,0.50696556,1250.9,1249.4,0.59381651]
[1760061018408,0.50696556,1250.9,1249.6,0.59381651]
[1760061018608,0.50696556,1250.9,1249.7,1.1684634]
[1760061018904,0.50696556,1250.9,1249.8,0.57464689]
[1760061019104,0.50696556,1250.9,1249.9,0.57464689]
[1760061019307,0.50696556,1250.9,1250.0,0.57464689]
[1760061019506,0.50696556,1250.9,1250.1,0.57464689]
[1760061019809,0.50696556,1250.9,1249.5,0.59381651]
[1760061020110,0.50696556,1250.9,1249.6,0.57454222]
[1760061020409,0.50696556,1250.9,1249.7,0.57454222]
[1760061020609,0.50696556,1250.9,1249.8,0.57454222]
[1760061020810,0.50696556,1250.9,1249.9,0.57454222]
[1760061021106,0.50696556,1250.9,1250.0,0.57454222]
[1760061021311,0.50696556,1250.9,1249.3,0.59381651]
[1760061021508,0.50696556,1250.9,1249.4,1.16813649]
[1760061021707,0.50696556,1250.9,1249.5,0.57431998]
[1760061022008,0.50696556,1250.9,1249.6,0.57431998]
[1760061022307,0.50696556,1250.9,1249.7,0.57431998]
[1760061022510,0.50696556,1250.9,1249.8,0.57431998]
[1760061022708,0.50696556,1250.9,1249.3,0.59381651]
[1760061023007,0.50696556,1250.9,1249.4,0.5649355]
[1760061023211,0.50696556,1250.9,1249.5,0.5649355]
[1760061023406,0.50696556,1250.9,1249.6,0.5649355]
[1760061023708,0.50696556,1250.9,1249.7,0.5649355]
[1760061023911,0.50696556,1250.9,1249.3,0.59381651]
[1760061024111,0.50696556,1250.9,1249.4,0.56466747]
[1760061024412,0.50696556,1250.9,1249.5,0.56466747]
[1760061024607,0.50696556,1250.9,1249.6,0.56466747]
[1760061024808,0.50696556,1250.9,1249.7,0.56466747]
[1760061025008,0.50696556,1250.9,1249.0,0.59381651]
[1760061025310,0.50696556,1250.9,1249.1,0.56438692]
[1760061025508,0.50696556,1250.9,1249.2,0.56438692]
[1760061025708,0.50696556,1250.9,1249.3,0.56438692]
[1760061025908,0.50696556,1250.9,1249.4,0.56438692]
[1760061026107,0.50696556,1250.9,1249.5,0.56438692]
[1760061026309,0.50696556,1250.9,1249.6,0.56438692]
[1760061026609,0.50696556,1250.9,1249.7,0.56438692]
[1760061026808,0.50696556,1250.9,1249.0,0.59381651]
[1760061027110,0.50696556,1250.9,1249.1,0.56384305]
[1760061027307,0.50696556,1250.9,1249.2,0.56384305]
[1760061027508,0.50696556,1250.9,1249.3,0.56384305]
[1760061027708,0.50696556,1250.9,1249.4,0.56384305]
[1760061028008,0.50696556,1250.9,1249.5,0.56384305]
[1760061028212,0.50696556,1250.9,1249.6,0.56384305]
[1760061028408,0.50696556,1250.9,1249.7,0.56384305]
[1760061028615,0.50696556,1250.9,1249.2,0.59381651]
[1760061028810,0.50696556,1250.9,1249.3,0.56335324]
[1760061029009,0.50696556,1250.9,1249.4,0.56335324]
[1760061029213,0.50696556,1250.9,1249.5,0.56335324]
[1760061029410,0.50696556,1250.9,1249.6,0.56335324]
[1760061029613,0.50696556,1250.9,1249.2,0.59381651]
[1760061029815,0.50696556,1250.9,1249.3,0.56315547]
[1760061030015,0.50696556,1250.9,1249.4,0.56315547]
[1760061030315,0.50696556,1250.9,1249.5,0.56315547]
[1760061030517,0.50696556,1250.9,1249.6,0.56315547]
[1760061030815,0.50696556,1250.9,1249.0,0.59381651]
[1760061031118,0.50696556,1250.9,1249.1,0.56301409]
[1760061031318,0.50696556,1250.9,1249.2,0.56301409]
[1760061031516,0.50696556,1250.9,1249.3,0.56301409]
[1760061031716,0.50696556,1250.9,1249.4,0.56301409]
[1760061031919,0.50696556,1250.9,1249.5,0.56301409]
[1760061032123,0.50696556,1250.9,1249.0,0.59381651]
[1760061032319,0.50696556,1250.9,1249.1,0.56282056]
[1760061032522,0.50696556,1250.9,1249.2,0.56282056]
[1760061032722,0.50696556,1250.9,1249.3,0.56282056]
[1760061033022,0.50696556,1250.9,1249.4,0.56282056]
[1760061033317,0.50696556,1250.9,1249.5,0.56282056]
[1760061033522,0.50696556,1250.9,1249.0,0.59381651]
[1760061033722,0.50696556,1250.9,1249.1,0.56246419]
[1760061033921,0.50696556,1250.9,1249.2,0.56246419]
[1760061034123,0.50696556,1250.9,1249.3,0.56246419]
[1760061034322,0.50696556,1250.9,1248.7,0.59381651]
[1760061034524,0.50696556,1250.9,1248.8,0.56242521]
[1760061034724,0.50696556,1250.9,1248.9,0.56242521]
[1760061034918,0.50696556,1250.9,1249.0,0.56242521]
[1760061035122,0.50696556,1250.9,1249.1,0.56242521]
[1760061035320,0.50696556,1250.9,1248.5,0.59381651]
[1760061035526,0.50696556,1250.9,1248.6,0.55875938]
[1760061035724,0.50696556,1250.9,1248.7,0.55875938]
[1760061035926,0.50696556,1250.9,1248.8,0.55875938]
[1760061036126,0.50696556,1250.9,1248.9,0.55875938]
[1760061036427,0.50696556,1250.9,1249.0,0.55875938]
[1760061036723,0.50696556,1250.9,1249.1,0.55875938]
[1760061037026,0.50696556,1250.9,1248.5,0.59381651]
[1760061037326,0.50696556,1250.9,1248.6,0.55850536]
[1760061037526,0.50696556,1250.9,1248.7,0.55850536]
[1760061037826,0.50696556,1250.9,1248.8,0.55850536]
[1760061038121,0.50696556,1250.9,1248.9,0.55850536]
[1760061038323,0.50696556,1250.9,1249.0,0.55850536]
[1760061038523,0.50696556,1250.9,1248.6,0.59381651]
[1760061038524,0.50696556,1250.9,1249.1,0.55850536]
[1760061038726,0.50696556,1250.9,1248.6,0.59381651]
[1760061038926,0.50696556,1250.9,1248.7,0.55807466]
[1760061039124,0.50696556,1250.9,1248.6,0.59381651]
[1760061039125,0.50696556,1250.9,1248.8,0.55807466]
[1760061039326,0.50696556,1250.9,1248.9,0.55807466]
[1760061039624,0.50696556,1250.9,1249.0,0.55807466]
[1760061039824,0.50696556,1250.9,1249.1,0.55807466]
[1760061040023,0.50696556,1250.9,1248.6,0.59381651]
[1760061040228,0.50696556,1250.9,1248.7,1.15172832]
[1760061040425,0.50696556,1250.9,1248.8,0.55791181]
[1760061040627,0.50696556,1250.9,1248.9,0.55791181]
[1760061040927,0.50696556,1250.9,1249.0,0.55791181]
[1760061041224,0.50696556,1250.9,1249.1,0.55791181]
[1760061041422,0.50696556,1250.9,1248.7,0.59381651]
[1760061041627,0.50696556,1250.9,1248.8,0.55766493]
[1760061041823,0.50696556,1250.9,1248.7,0.59381651]
[1760061041824,0.50696556,1250.9,1248.9,0.55766493]
[1760061042027,0.50696556,1250.9,1249.0,0.55766493]
[1760061042228,0.50696556,1250.9,1249.1,0.55766493]
[1760061042528,0.50696556,1250.9,1248.6,0.59381651]
[1760061042828,0.50696556,1250.9,1248.7,0.55757677]
[1760061043022,0.50696556,1250.9,1248.8,0.55757677]
[1760061043223,0.50696556,1250.9,1248.9,0.55757677]
[1760061043427,0.50696556,1250.9,1249.0,0.55757677]
[1760061043627,0.50696556,1250.9,1249.1,0.55757677]
[1760061043926,0.50696556,1250.9,1248.5,0.59381651]
[1760061044124,0.50696556,1250.9,1248.6,0.55751079]
[1760061044324,0.50696556,1250.9,1248.7,0.55751079]
[1760061044625,0.50696556,1250.9,1248.8,0.55751079]
[1760061044829,0.50696556,1250.9,1248.1,0.79279669]
[1760061045125,0.19294888,1248.4,1248.2,0.55746905]
[1760061045431,0.19294888,1248.4,1248.3,0.55746905]
[1760061046724,0.19294888,1248.4,1248.3,1.15128556]
[1760061046930,0.19294888,1248.5,1248.3,0.55746905]
[1760061047130,0.19294888,1248.5,1248.4,1.1464261]
[1760061047728,0.19294888,1248.6,1248.4,0.55746905]
[1760061047931,0.19294888,1248.6,1248.5,0.55746905]
[1760061054837,0.50696556,1250.9,1248.5,0.55746905]
[1760061055038,0.50696556,1250.9,1248.8,0.59061486]
[1760061055236,0.50696556,1250.9,1248.9,0.55746905]
[1760061055439,0.50696556,1250.9,1249.0,0.55746905]
[1760061055643,0.50696556,1250.9,1249.1,0.55746905]
[1760061055841,0.50696556,1250.9,1249.2,0.55746905]
[1760061056141,0.50696556,1250.9,1248.5,0.59061486]
[1760061056444,0.50696556,1250.9,1248.6,0.55914857]
[1760061056745,0.50696556,1250.9,1248.7,0.55914857]
[1760061056943,0.50696556,1250.9,1248.8,0.55914857]
[1760061057144,0.50696556,1250.9,1248.9,0.55914857]
[1760061057344,0.50696556,1250.9,1249.0,0.55914857]
[1760061057545,0.50696556,1250.9,1249.1,0.55914857]
[1760061057740,0.50696556,1250.9,1248.4,0.59061486]
[1760061058044,0.50696556,1250.9,1248.5,0.55960138]
[1760061058245,0.50696556,1250.9,1248.6,0.55960138]
[1760061058540,0.50696556,1250.9,1248.7,0.55960138]
[1760061058741,0.50696556,1250.9,1248.8,0.55960138]
[1760061059042,0.50696556,1250.9,1248.9,0.55960138]
[1760061059244,0.50696556,1250.9,1249.0,0.55960138]
[1760061059442,0.50696556,1250.9,1249.1,0.55960138]
[1760061059642,0.50696556,1250.9,1248.4,0.59061486]
[1760061059841,0.50696556,1250.9,1248.5,0.56006432]
[1760061060041,0.50696556,1250.9,1248.6,0.56006432]
[1760061060245,0.50696556,1250.9,1248.7,0.56006432]
[1760061060545,0.50696556,1250.9,1248.8,0.56006432]
[1760061060742,0.50696556,1250.9,1248.9,0.56006432]
[1760061061044,0.50696556,1250.9,1249.0,0.56006432]
[1760061061245,0.50696556,1250.9,1248.6,0.59061486]
[1760061061444,0.50696556,1250.9,1248.7,1.15093791]
[1760061061643,0.50696556,1250.9,1248.8,0.56032305]
[1760061061942,0.50696556,1250.9,1248.2,0.19898018]
[1760061061943,0.50696556,1250.9,1248.9,0.56032305]
[1760061062141,0.50696556,1250.9,1249.0,0.56032305]
[1760061062442,0.50696556,1250.9,1248.6,0.59061486]
[1760061062643,0.50696556,1250.9,1248.7,0.56063376]
[1760061062842,0.50696556,1250.9,1248.8,0.56063376]
[1760061063145,0.50696556,1250.9,1248.9,0.56063376]
[1760061063343,0.50696556,1250.9,1249.0,0.56063376]
[1760061063543,0.50696556,1250.9,1248.2,0.59061486]
[1760061063746,0.50696556,1250.9,1248.3,0.56092038]
[1760061064043,0.50696556,1250.9,1248.4,0.56092038]
[1760061064246,0.50696556,1250.9,1248.5,0.56092038]
[1760061064446,0.50696556,1250.9,1248.2,0.59061486]
[1760061064447,0.50696556,1250.9,1248.6,0.56092038]
[1760061064644,0.50696556,1250.9,1248.7,0.56092038]
[1760061064945,0.50696556,1250.9,1248.8,0.56092038]
[1760061065145,0.50696556,1250.9,1248.9,0.56092038]
[1760061065350,0.50696556,1250.9,1248.2,0.59061486]
[1760061065544,0.50696556,1250.9,1248.3,0.56120877]
[1760061065848,0.50696556,1250.9,1248.4,0.56120877]
[1760061066045,0.50696556,1250.9,1248.5,0.56120877]
[1760061066342,0.50696556,1250.9,1248.6,0.56120877]
[1760061066546,0.50696556,1250.9,1248.7,0.56120877]
[1760061066747,0.50696556,1250.9,1248.8,0.56120877]
[1760061067047,0.50696556,1250.9,1248.9,0.56120877]
[1760061067347,0.50696556,1250.9,1248.2,0.59061486]
[1760061067543,0.50696556,1250.9,1248.3,0.56167494]
[1760061067746,0.50696556,1250.9,1248.4,0.56167494]
[1760061068044,0.50696556,1250.9,1248.5,0.56167494]
[1760061068249,0.50696556,1250.9,1248.6,0.56167494]
[1760061068449,0.50696556,1250.9,1248.7,0.56167494]
[1760061068748,0.50696556,1250.9,1248.1,0.59061486]
[1760061068949,0.50696556,1250.9,1248.2,0.56199234]
[1760061069149,0.50696556,1250.9,1248.3,0.56199234]
[1760061069445,0.50696556,1250.9,1248.4,0.56199234]
[1760061069646,0.50696556,1250.9,1248.5,0.56199234]
[1760061069846,0.50696556,1250.9,1248.6,0.56199234]
[1760061070048,0.50696556,1250.9,1248.1,0.59061486]
[1760061070246,0.50696556,1250.9,1248.2,0.56212065]
[1760061070449,0.50696556,1250.9,1248.3,0.56212065]
[1760061070647,0.50696556,1250.9,1248.4,0.56212065]
[1760061070847,0.50696556,1250.9,1248.5,0.56212065]
[1760061071051,0.50696556,1250.9,1248.6,0.56212065]
[1760061071248,0.50696556,1250.9,1248.1,0.59061486]